bitfinex/quotes_ETHUSD_20220310
["timestamp","ask_amount","ask_price","bid_price","bid_amount"]
[1646907615276,0.98933254,2598.5,2598.3,1.0]
[1646907615710,0.98933254,2598.5,2598.2,1.9250748]
[1646907616923,0.05580521,2598.4,2598.2,1.9250748]
[1646907617116,0.98933254,2598.3,2598.2,1.9250748]
[1646907617317,0.98933254,2598.3,2598.2,0.22544756]
[1646907617816,0.98933254,2598.3,2598.0,2.9254805]
[1646907618016,0.98933254,2598.2,2598.0,2.9254805]
[1646907618218,0.98933254,2598.1,2598.0,2.9254805]
[1646907618416,0.98933254,2598.1,2598.0,6.8254805]
[1646907618616,0.98933254,2598.1,2598.0,5.8254805]
[1646907618816,0.98933254,2598.1,2598.0,6.8254805]
[1646907620364,0.98933254,2598.1,2598.0,7.88558112]
[1646907620763,1.92569,2598.6,2598.0,7.88558112]
[1646907621065,5.45118449,2598.8,2598.3,11.73]
[1646907621066,0.95130006,2598.5,2598.3,11.73]
[1646907621264,0.70888449,2599.0,2598.4,12.283]
[1646907621465,0.95227172,2598.9,2598.4,12.283]
[1646907621663,0.95227172,2598.8,2598.4,13.283]
[1646907621866,0.95227172,2598.7,2598.4,13.283]
[1646907622071,0.95227172,2598.6,2598.4,13.283]
[1646907622266,0.95227172,2598.5,2598.4,13.283]
[1646907622669,1.66115621,2599.1,2598.4,13.283]
[1646907623020,11.31862388,2599.3,2598.6,11.73]
[1646907623021,0.95227172,2599.0,2598.6,11.73]
[1646907623219,0.95227172,2598.9,2598.8,11.73]
[1646907623421,0.95530128,2599.3,2598.8,13.22976555]
[1646907623619,0.95530128,2599.3,2598.8,14.22976555]
[1646907623920,0.95530128,2599.3,2598.8,3.4777963]
[1646907624121,1.66115621,2599.3,2598.8,1.553]
[1646907624323,1.66115621,2599.2,2598.8,0.553]
[1646907624523,0.95227172,2599.1,2598.8,0.553]
[1646907624726,0.95227172,2599.0,2598.8,0.553]
[1646907624923,0.95227172,2598.9,2598.8,0.553]
[1646907625323,0.95227172,2598.9,2598.5,1.553]
[1646907625724,0.95227172,2598.9,2598.5,0.553]
[1646907626125,2.87761172,2598.9,2598.5,0.553]
[1646907626327,0.95227172,2598.8,2598.5,0.553]
[1646907627376,0.049072,2598.7,2598.5,1.5155475]
[1646907627571,0.95227172,2598.6,2598.5,1.5155475]
[1646907627972,0.95227172,2598.6,2598.5,0.5093475]
[1646907628571,0.95227172,2598.9,2598.5,0.5093475]
[1646907628773,0.06270876,2598.8,2598.5,0.5093475]
[1646907628971,0.95227172,2598.7,2598.5,0.5093475]
[1646907629174,0.95227172,2598.7,2598.5,1.471895]
[1646907629371,0.95227172,2598.7,2598.5,5.371895]
[1646907629571,0.95227172,2598.7,2598.5,6.371895]
[1646907630373,0.95227172,2598.7,2598.5,5.4093475]
[1646907630618,0.06356617,2598.6,2598.5,5.4093475]
[1646907630917,1.01583789,2598.6,2598.5,4.9]
[1646907633421,1.01583789,2598.6,2598.5,4.0735]
[1646907635069,0.95227172,2598.6,2598.5,16.3565]
[1646907635274,1.67143449,2599.1,2598.5,19.2441076]
[1646907635275,0.95227172,2599.0,2598.5,19.2441076]
[1646907635470,0.95227172,2599.0,2598.5,19.6284076]
[1646907635670,0.95227172,2599.0,2598.6,0.06715347]
[1646907635870,0.95227172,2598.9,2598.8,11.73]
[1646907636071,0.00302934,2599.3,2598.8,12.283]
[1646907636270,0.70888449,2599.7,2598.8,13.6673]
[1646907636271,0.0614471,2599.6,2598.8,13.6673]
[1646907636471,0.0614471,2599.6,2598.9,0.07649197]
[1646907636472,0.00302951,2599.3,2598.9,0.07649197]
[1646907636670,0.00302951,2599.3,2599.1,11.73]
[1646907636874,0.00302951,2599.3,2599.2,13.24519]
[1646907637277,0.96097924,2599.5,2599.2,12.5460814]
[1646907637475,0.96097924,2599.5,2599.3,10.9930814]
[1646907637675,0.00302976,2599.4,2599.3,10.9930814]
[1646907637878,0.00302976,2599.4,2599.3,11.9930814]
[1646907638316,0.00302976,2599.4,2599.3,12.5460814]
[1646907638518,0.96097924,2599.5,2599.3,12.5460814]
[1646907638815,0.96400896,2599.5,2599.3,12.5460814]
[1646907639015,0.00302972,2599.5,2599.3,12.5460814]
[1646907639817,0.0614471,2599.6,2599.3,13.58685394]
[1646907640017,0.00302969,2599.5,2599.3,2.59377254]
[1646907640216,0.00302969,2599.5,2599.3,1.59377254]
[1646907640420,0.00302969,2599.5,2599.3,1.553]
[1646907640619,0.00302969,2599.5,2599.3,13.283]
[1646907641019,0.77033159,2599.6,2599.3,13.283]
[1646907641218,0.00302969,2599.5,2599.3,13.283]
[1646907641876,0.00302969,2599.5,2599.3,1.553]
[1646907641877,0.76217939,2599.5,2599.3,1.553]
[1646907642078,0.7591497,2599.5,2599.3,1.553]
[1646907642277,0.76912935,2599.4,2599.3,0.553]
[1646907642878,0.70888449,2599.4,2599.3,12.283]
[1646907643279,0.00302967,2599.5,2599.3,14.24518]
[1646907643280,0.70888449,2599.5,2599.3,14.24518]
[1646907643881,0.71191418,2599.5,2599.3,14.24518]
[1646907644078,0.00302969,2599.5,2599.3,14.24518]
[1646907644685,0.70888449,2599.8,2599.5,11.73]
[1646907644883,0.70888449,2599.8,2599.7,11.73]
[1646907645080,0.70888449,2599.8,2599.7,11.72357678]
[1646907645280,0.70888449,2599.8,2599.7,14.17365104]
[1646907645520,0.70888449,2600.0,2599.7,14.17365104]
[1646907645725,0.70888449,2600.0,2599.7,14.16937344]
[1646907645921,0.00302951,2599.9,2599.7,14.16937344]
[1646907646926,0.70888449,2600.0,2599.7,14.16937344]
[1646907647225,0.00302948,2599.9,2599.8,11.71929918]
[1646907647426,0.00302948,2599.9,2599.8,14.19625918]
[1646907647626,0.00302948,2599.9,2599.8,15.19625918]
[1646907648230,0.70888449,2600.0,2599.8,15.19625918]
[1646907648429,0.70888449,2599.9,2599.8,15.19625918]
[1646907649028,0.70888449,2599.9,2599.8,19.09625918]
[1646907649467,0.70888449,2599.9,2599.8,20.22092265]
[1646907649666,0.71191392,2600.0,2599.8,20.22092265]
[1646907650469,0.70888449,2600.0,2599.8,20.22092265]
[1646907650871,0.7119139,2600.0,2599.8,19.09625918]
[1646907651670,0.70888449,2600.0,2599.8,19.09625918]
[1646907652073,0.7119139,2600.0,2599.8,19.09625918]
[1646907652475,0.00302941,2600.0,2599.8,22.28187388]
[1646907652676,0.00302941,2600.0,2599.8,22.47417388]
[1646907653116,0.81345656,2600.3,2599.9,11.71929918]
[1646907653317,0.81345656,2600.3,2600.1,13.64295918]
[1646907653318,0.10457207,2600.3,2600.1,13.64295918]
[1646907653621,0.10457207,2600.3,2600.1,16.41959038]
[1646907653818,0.10457207,2600.3,2600.2,1.00283661]
[1646907654218,0.10457207,2600.3,2600.1,17.41959038]
[1646907654420,0.10457207,2600.3,2600.2,0.96183]
[1646907654421,0.10761373,2600.3,2600.2,0.96183]
[1646907654620,0.81649822,2600.3,2600.1,3.2236312]
[1646907654819,0.81649822,2600.3,2600.1,0.3]
[1646907654820,0.70975044,2600.2,2600.1,0.3]
[1646907655019,0.04446819,2600.3,2600.1,1.0]
[1646907655219,0.9906885,2600.3,2599.8,5.8621089]
[1646907655420,0.7094876,2600.0,2599.8,5.8621089]
[1646907655718,0.7094876,2599.9,2599.8,5.8621089]
[1646907656120,0.7094876,2600.0,2599.8,5.8621089]
[1646907656325,0.7094876,2600.0,2599.8,6.1621089]
[1646907656767,0.00303971,2600.0,2599.8,6.1621089]
[1646907657472,0.00303971,2600.0,2599.8,4.76327942]
[1646907657873,0.7094876,2600.1,2599.8,4.76327942]
[1646907658073,0.00303971,2600.0,2599.8,4.76327942]
[1646907658273,0.00303971,2600.0,2599.9,0.96207]
[1646907658883,0.7094876,2600.2,2599.9,0.96207]
[1646907659074,1.62806812,2600.2,2599.9,0.96207]
[1646907659273,0.92162021,2600.1,2599.9,0.96207]
[1646907659475,0.91858052,2600.0,2599.9,0.96207]
[1646907660079,0.00303969,2600.1,2599.9,12.69207]
[1646907660278,0.91859372,2600.1,2599.9,14.62937]
[1646907660526,0.04142653,2600.3,2600.2,12.69185]
[1646907660723,0.04142653,2600.3,2600.2,13.99185]
[1646907660927,1.42321394,2601.0,2600.6,11.73]
[1646907661127,8.28356617,2601.3,2600.9,0.95717397]
[1646907661128,1.51989419,2601.3,2600.9,0.95717397]
[1646907661328,7.19853998,2602.0,2601.2,11.80748288]
[1646907661329,1.41858845,2602.0,2601.2,11.80748288]
[1646907661530,1.41858845,2602.3,2601.4,11.80392535]
[1646907661726,1.41858845,2602.4,2601.6,11.73]
[1646907661928,1.41858845,2602.3,2601.7,12.283]
[1646907662132,2.37991845,2602.3,2601.7,12.283]
[1646907662328,1.00505739,2602.0,2601.7,1.853]
[1646907662529,1.00505739,2602.0,2601.7,1.3]
[1646907662728,1.00505739,2602.0,2601.7,0.3]
[1646907662930,1.00505739,2602.0,2601.6,0.3]
[1646907663129,1.00505739,2602.0,2601.4,5.1451322]
[1646907663330,1.96648739,2602.0,2601.4,16.8751322]
[1646907663830,1.96648739,2602.0,2601.6,0.96138]
[1646907664034,0.00344992,2601.8,2601.6,0.96138]
[1646907664273,0.00344992,2601.8,2601.6,1.26138]
[1646907665066,0.06348465,2601.8,2601.6,1.26138]
[1646907665266,0.06693457,2601.8,2601.6,1.26138]
[1646907665467,2.95135457,2601.8,2601.6,1.26138]
[1646907666269,2.94790465,2601.8,2601.6,1.26138]
[1646907666473,2.95135457,2601.8,2601.6,1.26138]
[1646907667475,2.94790465,2601.8,2601.6,1.26138]
[1646907667675,2.95115901,2601.8,2601.6,1.26138]
[1646907668520,2.94790465,2601.8,2601.6,1.26138]
[1646907668923,2.95105551,2601.8,2601.6,1.26138]
[1646907669619,2.95105551,2601.8,2601.6,5.16138]
[1646907669821,2.94790465,2601.8,2601.6,6.16138]
[1646907670020,0.06385023,2601.7,2601.6,6.16138]
[1646907674279,0.003078,2601.8,2601.7,99.5]
[1646907674480,0.003078,2601.8,2601.7,99.5853505]
[1646907674677,0.06623244,2602.5,2602.0,11.73]
[1646907674678,0.76059978,2602.5,2602.0,11.73]
[1646907674975,0.76059978,2602.5,2602.1,0.553]
[1646907675181,1.09191459,2602.4,2602.1,0.853]
[1646907675381,1.79859061,2602.4,2602.1,0.853]
[1646907675625,1.79859061,2602.4,2602.1,0.3]
[1646907675827,1.79859061,2602.4,2602.0,0.3]
[1646907676125,0.96139,2602.3,2601.8,0.853]
[1646907676327,0.96139,2602.3,2601.8,13.583]
[1646907676726,0.96139,2602.3,2601.8,13.03]
[1646907677329,0.96139,2602.3,2601.6,15.31727797]
[1646907677530,2.10373752,2602.0,2601.8,1.92255]
[1646907677730,2.10373752,2602.0,2601.6,15.31727797]
[1646907677932,0.05902284,2601.9,2601.6,3.58727797]
[1646907678535,0.06234166,2601.9,2601.6,3.58727797]
[1646907679132,0.06234166,2601.9,2601.6,3.88727797]
[1646907679367,0.05902284,2601.9,2601.6,3.88727797]
[1646907679777,0.06240954,2601.9,2601.6,4.88727797]
[1646907680368,0.72396292,2601.8,2601.6,4.88727797]
[1646907680569,0.05344028,2601.7,2601.6,4.88727797]
[1646907680769,0.72396292,2601.7,2601.6,4.88727797]
[1646907681669,0.72734962,2601.9,2601.6,4.88727797]
[1646907681873,0.72396292,2601.9,2601.6,4.88727797]
[1646907682074,0.00338675,2601.8,2601.6,4.88727797]
[1646907682776,0.00338675,2601.8,2600.5,2.4907]
[1646907682777,72.30746,2601.7,2600.5,2.4907]
[1646907683028,72.30746,2601.7,2599.6,1.0]
[1646907683029,0.96184,2600.3,2599.7,10.3264]
[1646907683230,0.96184,2600.3,2599.6,3.5]
[1646907683429,0.96184,2600.3,2599.8,0.96212]
[1646907683628,0.96184,2600.3,2599.9,11.73]
[1646907684428,0.00187,2600.2,2599.9,11.73]
[1646907684727,0.00187,2600.2,2599.9,13.03]
[1646907684940,0.00187,2600.2,2599.9,11.73]
[1646907685328,0.96184,2600.3,2599.9,11.73]
[1646907685727,0.00187,2600.2,2599.9,11.73]
[1646907686130,0.00187,2600.2,2599.9,12.03]
[1646907686329,0.96218,2600.1,2599.9,0.3]
[1646907686529,0.96218,2600.1,2599.6,14.95416]
[1646907687171,0.73361583,2600.0,2599.6,14.95416]
[1646907687677,1.9558533,2600.0,2599.6,3.22416]
[1646907687871,1.22223747,2600.0,2599.6,0.3]
[1646907688072,0.96433542,2599.9,2599.6,1.3]
[1646907688271,0.96433542,2599.9,2599.6,0.3]
[1646907688674,0.734159,2599.8,2599.4,13.03]
[1646907689274,0.00207542,2599.7,2599.4,13.03]
[1646907689475,1.92671542,2599.7,2599.4,13.03]
[1646907690280,1.92464,2599.7,2599.4,1.3]
[1646907690521,1.92671542,2599.7,2599.4,1.3]
[1646907690826,1.59880811,2599.6,2599.4,0.3]
[1646907691023,0.73419595,2599.5,2599.4,3.9]
[1646907691224,0.73419595,2599.5,2599.4,4.2]
[1646907691926,0.73936248,2599.5,2599.4,4.2]
[1646907692525,0.73936248,2599.5,2599.4,4.1932624]
[1646907694027,0.00356567,2599.6,2599.4,4.1932624]
[1646907694277,0.74301073,2599.6,2599.4,4.1932624]
[1646907694469,2.66765073,2599.6,2599.4,4.1932624]
[1646907694667,1.92820567,2599.6,2599.4,4.1932624]
[1646907695070,1.92464,2599.6,2599.4,4.1932624]
[1646907695269,1.92820564,2599.6,2599.4,4.1932624]
[1646907696271,1.92464,2599.6,2599.4,4.1932624]
[1646907696470,1.92808797,2599.6,2599.4,4.1932624]
[1646907697078,0.00344797,2599.6,2599.4,5.1554406]
[1646907697276,0.00344797,2599.6,2599.5,1.05428631]
[1646907697476,0.96231,2599.7,2599.4,17.24049816]
[1646907697678,0.00344797,2599.6,2599.4,17.24049816]
[1646907697876,0.00344797,2599.6,2599.4,16.63]
[1646907698122,0.72562667,2599.6,2599.4,16.63]
[1646907698320,0.72562667,2599.6,2599.4,4.9]
[1646907698518,0.00344797,2599.6,2599.4,4.9]
[1646907698718,0.72209457,2599.6,2599.4,3.9]
[1646907698919,0.72554254,2599.6,2599.4,3.9]
[1646907699319,0.72554254,2599.6,2599.4,4.2]
[1646907699920,0.72209457,2599.6,2599.4,4.2]
[1646907700122,0.72538943,2599.6,2599.4,4.2]
[1646907700724,0.72538943,2599.6,2599.4,5.17699659]
[1646907701126,0.05666816,2599.5,2599.4,5.17699659]
[1646907703477,0.96231,2599.7,2599.4,20.40699659]
[1646907703677,0.96231,2599.7,2599.6,11.73]
[1646907703877,0.96231,2599.7,2599.6,31.73]
[1646907704076,1.92432,2599.8,2599.6,31.73]
[1646907704378,1.92432,2599.8,2599.6,32.03]
[1646907704977,1.92788247,2599.8,2599.6,32.03]
[1646907705825,1.92432,2599.8,2599.6,32.03]
[1646907706222,1.92788247,2599.8,2599.6,32.03]
[1646907706822,1.92788247,2599.8,2599.7,3.5]
[1646907707026,1.92432,2599.8,2599.7,15.23]
[1646907707223,1.92432,2599.8,2599.7,16.23]
[1646907707423,1.92788247,2599.8,2599.7,12.73]
[1646907708224,1.92432,2599.8,2599.7,12.73]
[1646907709281,1.92432,2599.8,2599.7,16.23]
[1646907709676,1.92432,2599.8,2599.7,12.73]
[1646907710979,0.96542919,2599.9,2599.7,12.73]
[1646907711875,0.96215,2599.9,2599.7,12.73]
[1646907712076,0.95877933,2599.9,2599.7,12.73]
[1646907712677,0.95877933,2599.9,2599.7,11.73]
[1646907712878,0.95877933,2599.9,2599.7,12.73]
[1646907713122,0.9554696,2599.9,2599.7,12.73]
[1646907713327,0.95877933,2599.9,2599.7,12.73]
[1646907713927,0.75877933,2599.9,2599.7,12.73]
[1646907714429,0.7554696,2599.9,2599.8,11.73]
[1646907714630,0.75877933,2599.9,2599.8,11.73]
[1646907714829,0.75877933,2599.9,2599.8,13.03]
[1646907715429,0.7554696,2599.9,2599.8,13.03]
[1646907716229,0.00331183,2600.0,2599.9,13.8064691]
[1646907716429,0.72636188,2600.0,2599.9,12.69199]
[1646907716630,0.72305005,2600.0,2599.9,12.69199]
[1646907717482,0.72305005,2600.0,2599.9,10.99295484]
[1646907717883,0.72305005,2600.0,2599.9,11.99295484]
[1646907718285,0.72305005,2600.0,2599.9,10.99295484]
[1646907718486,0.72305005,2600.0,2599.9,11.95494484]
[1646907721928,0.72305005,2600.0,2599.9,10.99295484]
[1646907727678,1.42972607,2600.0,2599.9,10.99295484]
[1646907728125,0.72305005,2600.0,2599.9,10.99295484]
[1646907728322,1.42972607,2600.0,2599.9,10.99295484]
[1646907728927,0.72305005,2600.0,2599.9,10.99295484]
[1646907730226,0.39697974,2600.0,2599.9,10.99295484]
[1646907730426,0.0528549,2600.0,2599.9,10.99295484]
[1646907731429,0.75953092,2600.0,2599.9,10.99295484]
[1646907731880,0.0528549,2600.0,2599.9,10.99295484]
[1646907732979,0.0528549,2600.0,2599.9,10.98621884]
[1646907733781,1.67202753,2600.1,2599.9,10.98621884]
[1646907734782,1.66871602,2600.1,2599.9,10.98621884]
[1646907734981,1.6720275,2600.1,2599.9,10.98621884]
[1646907735381,0.70667602,2600.0,2599.9,10.98621884]
[1646907735624,0.70667602,2600.0,2599.9,10.9798238]
[1646907736324,1.70033537,2600.0,2599.8,1.2621]
[1646907736527,0.76818451,2599.9,2599.8,0.3]
[1646907736723,0.76818451,2599.9,2599.6,21.3]
[1646907736928,0.05884509,2599.8,2599.6,21.3]
[1646907737530,0.05884509,2599.8,2599.6,19.6009223]
[1646907737931,0.05884509,2599.8,2599.6,32.2931023]
[1646907738132,0.05884509,2599.8,2599.6,33.52746095]
[1646907738632,0.70667602,2600.0,2599.6,33.52746095]
[1646907739034,0.70667602,2600.0,2599.6,33.82746095]
[1646907739280,0.70667602,2600.0,2599.8,11.73]
[1646907739472,0.70667602,2600.0,2599.9,12.69202]
[1646907739872,0.70667602,2600.0,2599.9,13.69202]
[1646907740172,1.66876602,2600.0,2599.9,13.69202]
[1646907741374,0.70667602,2600.0,2599.9,13.69202]
[1646907742879,0.70667602,2600.0,2599.9,1.96202]
[1646907743321,0.70667602,2600.0,2599.8,0.3]
[1646907743521,0.70667602,2600.0,2599.7,13.03]
[1646907743724,0.70667602,2599.9,2599.7,13.03]
[1646907743923,0.70667602,2599.9,2599.7,13.99211]
[1646907744623,0.70996754,2599.9,2599.7,13.99211]
[1646907745425,0.70667602,2599.9,2599.7,13.99211]
[1646907745825,0.70965425,2599.9,2599.7,13.99211]
[1646907746780,0.70667602,2599.9,2599.7,13.99211]
[1646907746990,0.70965425,2599.9,2599.7,13.99211]
[1646907747785,0.05474592,2599.8,2599.7,1.26211]
[1646907747986,0.05474592,2599.8,2599.6,20.13528095]
[1646907747987,0.76142194,2599.8,2599.6,20.13528095]
[1646907748285,0.94250605,2600.0,2599.6,18.6009223]
[1646907748286,0.77327607,2599.7,2599.6,18.6009223]
[1646907749687,0.70667602,2599.7,2599.6,19.9009223]
[1646907750288,0.70667602,2599.7,2599.6,20.82010092]
[1646907752736,0.67089861,2599.7,2599.6,20.82010092]
[1646907752937,1.38061829,2599.8,2599.6,20.82010092]
[1646907753138,1.38061829,2599.8,2599.7,0.91917862]
[1646907753938,1.37757463,2599.8,2599.7,0.91917862]
[1646907754878,0.67089861,2599.8,2599.7,0.91917862]
[1646907755775,1.38586518,2599.8,2599.7,0.91917862]
[1646907757682,1.38586518,2599.8,2599.6,18.9009223]
[1646907757881,1.38586518,2599.8,2599.7,0.91907184]
[1646907758123,1.38586518,2599.8,2599.7,0.91906999]
[1646907758323,1.38586518,2599.8,2599.6,18.9009223]
[1646907758523,1.38586518,2599.8,2599.7,0.9190545]
[1646907758823,1.38586518,2599.8,2599.6,18.9009223]
[1646907759023,1.38890588,2599.8,2599.7,0.91905457]
[1646907759223,1.38890588,2599.8,2599.6,18.9009223]
[1646907759425,1.38890588,2599.8,2599.7,0.91903645]
[1646907759627,1.38890588,2599.8,2599.6,19.9009223]
[1646907759825,1.44391709,2599.8,2599.6,19.9009223]
[1646907760027,1.44391709,2599.8,2599.6,31.6309223]
[1646907760028,0.73192922,2599.7,2599.6,31.6309223]
[1646907760428,0.67089861,2599.7,2599.6,32.54987559]
[1646907760627,0.67089861,2599.7,2599.6,31.6309223]
[1646907760827,0.67089861,2599.7,2599.6,32.5498687]
[1646907761025,0.67089861,2599.8,2599.6,31.6309223]
[1646907761227,0.67089861,2599.7,2599.6,31.6309223]
[1646907761627,0.6739393,2599.8,2599.6,32.5498738]
[1646907761882,0.67089861,2599.7,2599.6,31.6309223]
[1646907762082,0.00304069,2599.8,2599.7,13.65398]
[1646907762282,0.71496657,2599.9,2599.7,14.65398]
[1646907762483,0.71496657,2599.9,2599.8,11.73]
[1646907762690,0.71496657,2599.9,2599.8,12.03]
[1646907763184,0.71496657,2599.9,2599.8,12.94891369]
[1646907763483,0.71496657,2599.9,2599.8,12.94885806]
[1646907763684,0.71496657,2599.9,2599.8,12.94885934]
[1646907763883,0.71496657,2599.9,2599.8,12.03]
[1646907764184,0.71496657,2599.9,2599.8,13.03164051]
[1646907764385,0.71496657,2599.9,2599.8,13.95048103]
[1646907764584,0.71496657,2599.9,2599.8,13.03164051]
[1646907764786,0.71496657,2599.9,2599.8,13.95048054]
[1646907764988,0.71496657,2599.9,2599.8,13.03164051]
[1646907765190,0.71496657,2599.9,2599.8,13.95051744]
[1646907765388,0.71496657,2599.9,2599.8,13.03164051]
[1646907765631,0.67099927,2599.9,2599.8,13.03164051]
[1646907765829,0.71496657,2600.0,2599.9,12.69198]
[1646907766029,1.38580676,2600.0,2599.9,12.69198]
[1646907766231,1.38884961,2600.0,2599.9,12.69198]
[1646907766429,0.71800942,2600.0,2599.9,13.61077625]
[1646907766631,0.71800942,2600.0,2599.9,12.69198]
[1646907766835,0.71800942,2600.0,2599.9,13.61077689]
[1646907767035,0.71496657,2600.0,2599.9,12.69198]
[1646907767235,0.71496657,2600.0,2599.9,13.60028054]
[1646907767434,0.71496657,2600.0,2599.9,12.69198]
[1646907767633,0.71496657,2600.0,2599.9,1.87028394]
[1646907767634,0.7364857,2600.0,2599.9,1.87028394]
[1646907767838,0.7364857,2600.0,2599.8,1.30164051]
[1646907768035,1.39586424,2599.9,2599.8,1.30164051]
[1646907768435,1.39586424,2599.9,2599.8,2.20993926]
[1646907768734,0.71466831,2599.9,2599.8,1.30164051]
[1646907768934,0.71466831,2599.9,2599.8,2.20993797]
[1646907769136,0.71466831,2599.9,2599.8,1.30164051]
[1646907769379,0.71466831,2599.9,2599.8,2.20994358]
[1646907769779,1.39890457,2600.0,2599.8,13.93993206]
[1646907769979,1.39890457,2600.0,2599.9,0.90825288]
[1646907770180,1.39890457,2600.0,2599.8,2.30164051]
[1646907770383,1.39890457,2600.0,2599.9,0.90824965]
[1646907770580,1.39890457,2600.0,2599.8,1.30164051]
[1646907770882,2.35806424,2600.0,2599.9,0.90824242]
[1646907771083,1.64643624,2600.0,2599.9,0.90824321]
[1646907771283,1.64643624,2600.0,2599.8,1.30164051]
[1646907771483,1.39585026,2599.9,2599.8,1.30164051]
[1646907771890,1.39585026,2599.9,2599.8,1.20820071]
[1646907772086,1.39585026,2599.9,2599.6,19.9009223]
[1646907772287,1.39585026,2599.9,2599.8,0.3]
[1646907772686,1.39585026,2599.9,2599.8,0.90820337]
[1646907772889,1.39585026,2599.9,2599.7,0.90820222]
[1646907773126,1.39585026,2599.9,2599.7,1.17805781]
[1646907773327,1.39585026,2599.9,2599.8,1.20819747]
[1646907773526,1.39585026,2599.9,2599.8,0.3]
[1646907773826,0.71465433,2599.9,2599.7,2.44016781]
[1646907774227,0.71465433,2599.9,2599.8,0.90718269]
[1646907774427,0.71465433,2599.9,2599.7,1.04127082]
[1646907774627,0.71769495,2599.9,2599.8,1.11700597]
[1646907775029,0.00304062,2599.9,2599.8,1.11700597]
[1646907775229,0.00304062,2599.9,2599.8,12.84700597]
[1646907775434,0.71465433,2600.0,2599.8,12.84700597]
[1646907775629,0.71465433,2599.9,2599.8,1.11700597]
[1646907778177,0.71465433,2599.9,2599.8,12.84700597]
[1646907778779,0.77589151,2600.0,2599.8,12.84700597]
[1646907778980,0.71769489,2600.0,2599.8,12.84700597]
[1646907779180,0.05685794,2599.9,2599.8,12.84700597]
[1646907779381,0.05685794,2599.9,2599.8,13.84700597]
[1646907782934,0.05685794,2599.9,2599.8,2.11700597]
[1646907783335,0.05685794,2599.9,2599.8,1.11700597]
[1646907784134,0.05685794,2599.9,2599.6,31.6309223]
[1646907785375,0.05989855,2599.9,2599.6,31.6309223]
[1646907785574,0.05989855,2599.9,2599.8,1.1961205]
[1646907785779,0.05989855,2599.9,2599.6,31.6309223]
[1646907786378,0.05685794,2599.9,2599.6,31.6309223]
[1646907786577,0.05989855,2599.9,2599.6,31.6309223]
[1646907786979,0.05989855,2599.9,2599.6,20.80359282]
[1646907787582,1.01908794,2599.9,2599.6,20.80359282]
[1646907787781,0.0564454,2599.8,2599.6,20.80359282]
[1646907788736,0.0564454,2599.8,2599.7,0.96209]
[1646907788937,0.05948604,2599.8,2599.7,0.96209]
[1646907790038,0.71465433,2599.9,2599.7,12.69209]
[1646907790239,0.00304062,2599.9,2599.7,12.69209]
[1646907791041,0.71465433,2600.0,2599.7,12.69209]
[1646907791441,0.00304059,2599.9,2599.7,12.69209]
[1646907792290,0.71465433,2600.0,2599.7,13.6541563]
[1646907792491,0.96207,2599.9,2599.7,13.6541563]
[1646907792691,1.67976492,2599.9,2599.8,0.3]
[1646907792890,0.00304059,2599.9,2599.8,1.26207]
[1646907793090,0.00304059,2599.9,2599.8,12.99207]
[1646907793290,0.00304059,2599.9,2599.8,1.26207]
[1646907793491,2.63879433,2600.0,2599.8,1.26207]
[1646907793696,2.6418349,2600.0,2599.8,1.26207]
[1646907794293,2.6418349,2600.0,2599.9,0.92973837]
[1646907794495,3.30063847,2600.0,2599.9,0.92973653]
[1646907794697,3.2975979,2600.0,2599.8,1.26207]
[1646907794896,0.65880357,2599.9,2599.8,2.2241615]
[1646907795294,0.65880357,2599.9,2599.8,3.15396547]
[1646907795524,0.65880357,2599.9,2599.8,3.15396507]
[1646907795724,0.65880357,2599.9,2599.8,2.2241615]
[1646907796124,0.65880357,2599.9,2599.8,3.15396788]
[1646907796329,0.65880357,2599.9,2599.8,3.2241615]
[1646907796527,0.65880357,2599.9,2599.8,4.15401001]
[1646907796829,0.65880357,2599.9,2599.8,4.15401009]
[1646907797031,0.65880357,2599.9,2599.8,3.2241615]
[1646907797230,0.65880357,2599.9,2599.8,3.14372751]
[1646907797431,0.65880357,2599.9,2599.8,2.2241615]
[1646907797730,1.3734579,2599.9,2599.8,2.2241615]
[1646907798333,1.3734579,2599.9,2599.8,3.14378963]
[1646907798531,1.3734579,2599.9,2599.8,2.2241615]
[1646907798731,1.3734579,2599.9,2599.8,3.14379076]
[1646907798935,1.3734579,2599.9,2599.8,1.26207]
[1646907799136,1.3734579,2599.9,2599.8,1.88172185]
[1646907799137,4.8734579,2599.9,2599.8,1.88172185]
[1646907799379,6.08338357,2599.9,2599.6,17.86303975]
[1646907799680,0.71211759,2599.7,2599.6,18.16303975]
[1646907799877,1.37092116,2599.7,2599.6,19.11454512]
[1646907800082,0.65880357,2599.7,2599.6,21.03912512]
[1646907800284,0.65880357,2599.7,2599.6,22.03912512]
[1646907800884,0.65880357,2599.7,2599.6,23.14218014]
[1646907801083,2.43167368,2599.7,2599.6,21.03912512]
[1646907801286,1.37092116,2599.7,2599.6,21.03912512]
[1646907804424,0.65880357,2599.7,2599.6,21.03912512]
[1646907804824,1.37092116,2599.7,2599.6,21.03912512]
[1646907805225,0.65880357,2599.7,2599.6,21.03912512]
[1646907807783,0.65880357,2599.7,2599.6,20.73912512]
[1646907809184,1.37092116,2599.7,2599.6,20.73912512]
[1646907810386,1.37092116,2599.7,2599.6,19.78761975]
[1646907810624,0.65880357,2599.7,2599.6,19.78761975]
[1646907811026,1.36966889,2599.7,2599.6,19.78761975]
[1646907811225,1.36966889,2599.7,2599.6,20.68859474]
[1646907812427,1.36966889,2599.7,2599.6,20.98859474]
[1646907812631,0.65880357,2599.7,2599.6,20.98859474]
[1646907813529,0.65880357,2599.7,2599.6,20.68859474]
[1646907813530,1.87914662,2599.7,2599.6,20.68859474]
[1646907813732,1.36966889,2599.7,2599.6,20.68859474]
[1646907813931,1.36966889,2599.7,2599.6,20.6848652]
[1646907814782,1.36966889,2599.7,2599.6,19.78761975]
[1646907815387,4.86966889,2599.7,2599.6,19.78761975]
[1646907815581,4.15880357,2599.7,2599.6,17.86303975]
[1646907816385,4.15880357,2599.7,2599.6,13.44303975]
[1646907816386,6.02553591,2599.7,2599.6,13.44303975]
[1646907816585,70.0,2599.6,2599.4,3.9]
[1646907816784,7.15056242,2599.5,2599.4,3.9]
[1646907817386,6.20307988,2599.5,2599.4,3.9]
[1646907817587,8.15056242,2599.5,2599.4,3.9]
[1646907818224,7.20307988,2599.5,2599.4,3.9]
[1646907818425,8.15056242,2599.5,2599.4,3.9]
[1646907819227,0.65880357,2599.5,2599.4,3.9]
[1646907819428,0.65880357,2599.5,2599.4,2.20067423]